[Event "11th LCC FIDE Open 2019"]
[Site "London"]
[Date "2019.12.05"]
[Round "9.38"]
[White "Varsha Ramesh"]
[Black "Goh, Zi Han"]
[Result "1/2-1/2"]
[ECO "B99"]
[WhiteElo "1669"]
[BlackElo "2134"]
[Annotator "NA"]
[PlyCount "40"]
[EventDate "2019.11.29"]
[EventType "swiss"]
[EventCountry "ENG"]
[SourceTitle "playchess.com"]
[Source "ChessBase"]
[SourceQuality "1"]
[TimeControl "40/5400+30:1800+30"]

1. e4 {[%emt 0:01:14]} c5 {[%emt 0:00:00]} 2. Nf3 {[%emt 0:00:06]} d6 {[%emt 0:00:00]} 3. d4 {[%emt 0:00:06]} cxd4 {[%emt 0:00:00]} 4. Nxd4 {[%emt 0:00:05]} Nf6 {[%emt 0:00:04]} 5. Nc3 {[%emt 0:00:05]} a6 {[%emt 0:00:08]} 6. Bg5 {[%emt 0:00:10]} e6 {[%emt 0:00:13]} 7. f4 {[%emt 0:00:05]} Qc7 {[%emt 0:00:06]} 8. Qf3 {[%emt 0:01:21]} b5 {[%emt 0:00:13]} 9. a3 {[%emt 0:01:09]} Nbd7 {[%emt 0:02:42]} 10. O-O-O {[%emt 0:01:05]} Be7 {[%emt 0:00:11]} 11. g4 {[%emt 0:01:19]} Rb8 {[%emt 0:03:13]} 12. Bxf6 {[%emt 0:02:55]} Nxf6 {[%emt 0:00:19]} 13. g5 {[%emt 0:00:30]} Nd7 {[%emt 0:00:07]} 14. Rg1 {[%emt 0:00:48]} b4 {[%emt 0:05:30]} 15. axb4 {[%emt 0:01:02]} Rxb4 {[%emt 0:00:20]} 16. Be2 {[%emt 0:04:28]} Qb6 {[%emt 0:04:00]} 17. Nb3 {[%emt 0:05:29]} a5 {[%emt 0:06:21]} 18. Na2 {[%emt 0:05:49]} Ra4 {[%emt 0:04:47]} 19. Nc3 {[%emt 0:00:07]} Rb4 {[%emt 0:00:37]} 20. Na2 {[%emt 0:00:06]} Ra4 {[%emt 0:15:49]} 1/2-1/2

[Event "11th LCC FIDE Open 2019"]
[Site "London"]
[Date "2019.12.05"]
[Round "9.41"]
[White "Sarpotdar, Amogh"]
[Black "Marusenko, Petr"]
[Result "0-1"]
[ECO "B14"]
[WhiteElo "2015"]
[BlackElo "2085"]
[Annotator "NA"]
[PlyCount "118"]
[EventDate "2019.11.29"]
[EventType "swiss"]
[EventCountry "ENG"]
[SourceTitle "playchess.com"]
[Source "ChessBase"]
[SourceQuality "1"]
[TimeControl "40/5400+30:1800+30"]

1. e4 {[%emt 0:00:00]} c6 {[%emt 0:00:00]} 2. d4 {[%emt 0:00:00]} d5 {[%emt 0:00:00]} 3. exd5 {[%emt 0:00:00]} cxd5 {[%emt 0:00:00]} 4. c4 {[%emt 0:00:00]} Nf6 {[%emt 0:00:00]} 5. Nc3 {[%emt 0:00:09]} Nc6 {[%emt 0:00:00]} 6. Bg5 {[%emt 0:02:07]} e6 {[%emt 0:00:01]} 7. Nf3 {[%emt 0:00:42]} Be7 {[%emt 0:00:10]} 8. c5 {[%emt 0:00:56]} Ne4 {[%emt 0:00:12]} 9. Bxe7 {[%emt 0:06:31]} Qxe7 {[%emt 0:00:08]} 10. Bb5 {[%emt 0:00:32]} Bd7 {[%emt 0:02:12]} 11. Qe2 {[%emt 0:04:57]} Nxc3 {[%emt 0:05:37]} 12. bxc3 {[%emt 0:00:09]} O-O {[%emt 0:00:03]} 13. O-O {[%emt 0:00:59]} b6 {[%emt 0:00:23]} 14. cxb6 {[%emt 0:07:18]} axb6 {[%emt 0:01:40]} 15. a4 {[%emt 0:01:38]} Rfc8 {[%emt 0:00:38]} 16. Rfe1 {[%emt 0:04:44]} Na5 {[%emt 0:05:47]} 17. Bxd7 {[%emt 0:03:42]} Qxd7 {[%emt 0:00:09]} 18. Ne5 {[%emt 0:00:07]} Qe8 {[%emt 0:02:02]} 19. Rab1 {[%emt 0:07:26]} Nc4 {[%emt 0:03:15]} 20. Nxc4 {[%emt 0:01:40]} Rxc4 {[%emt 0:02:38]} 21. Rxb6 {[%emt 0:00:17]} Qxa4 {[%emt 0:07:27]} 22. Reb1 {[%emt 0:01:40]} Qe8 {[%emt 0:01:48]} 23. Qf3 {[%emt 0:01:18]} Rac8 {[%emt 0:00:12]} 24. R1b3 {[%emt 0:00:37]} Rxd4 {[%emt 0:02:43]} 25. g3 {[%emt 0:01:15]} Rdc4 {[%emt 0:07:12]} 26. h4 {[%emt 0:01:12]} R4c7 {[%emt 0:03:07]} 27. h5 {[%emt 0:00:59]} h6 {[%emt 0:00:06]} 28. Qe3 {[%emt 0:03:41]} Qd8 {[%emt 0:03:18]} 29. Rb7 {[%emt 0:05:33]} Rxb7 {[%emt 0:04:05]} 30. Rxb7 {[%emt 0:00:13]} Qg5 {[%emt 0:00:03]} 31. Qf3 {[%emt 0:07:20]} Qf6 {[%emt 0:03:05]} 32. Qxf6 {[%emt 0:00:16]} gxf6 {[%emt 0:00:06]} 33. Rb3 {[%emt 0:00:10]} f5 {[%emt 0:00:48]} 34. f4 {[%emt 0:01:51]} Kg7 {[%emt 0:00:37]} 35. Kf2 {[%emt 0:00:15]} Kf6 {[%emt 0:00:07]} 36. Ke3 {[%emt 0:01:07]} Rc7 {[%emt 0:00:17]} 37. Kd3 {[%emt 0:00:57]} Rc8 {[%emt 0:00:06]} 38. Ke3 {[%emt 0:00:14]} Ra8 {[%emt 0:00:47]} 39. Rb7 {[%emt 0:03:33]} Ra1 {[%emt 0:00:19]} 40. Rc7 {[%emt 0:01:44]} Re1+ {[%emt 0:00:28]} 41. Kf3 {[%emt 0:30:37]} Re4 {[%emt 0:36:59]} 42. Rc8 {[%emt 0:07:35]} Ra4 {[%emt 0:03:27]} 43. Rc7 {[%emt 0:03:10]} Ra3 {[%emt 0:00:18]} 44. Ke3 {[%emt 0:00:12]} Rb3 {[%emt 0:00:30]} 45. Kf2 {[%emt 0:00:59]} Rb2+ {[%emt 0:01:55]} 46. Kf3 {[%emt 0:00:35]} Rc2 {[%emt 0:00:18]} 47. Ke3 {[%emt 0:00:35]} Kg7 {[%emt 0:00:14]} 48. Rc8 {[%emt 0:01:24]} Rc1 {[%emt 0:00:18]} 49. Ke2 {[%emt 0:04:20]} Kf6 {[%emt 0:01:22]} 50. Rc7 {[%emt 0:00:14]} Rh1 {[%emt 0:01:15]} 51. Kf3 {[%emt 0:00:21]} Rd1 {[%emt 0:07:39]} 52. Ke2 {[%emt 0:01:03]} Rc1 {[%emt 0:00:30]} 53. Kf3 {[%emt 0:00:39]} Rc2 {[%emt 0:00:16]} 54. Ke3 {[%emt 0:00:23]} Rh2 {[%emt 0:01:34]} 55. Kf3 {[%emt 0:00:11]} Ra2 {[%emt 0:00:05]} 56. Ke3 {[%emt 0:00:12]} Ra6 {[%emt 0:00:08]} 57. Kd4 {[%emt 0:01:38]} Rb6 {[%emt 0:02:01]} 58. Kd3 {[%emt 0:00:46]} Rb8 {[%emt 0:02:24]} 59. Kd4 {[%emt 0:00:35]} Rg8 {[%emt 0:00:13]} 0-1

[Event "11th LCC FIDE Open 2019"]
[Site "London"]
[Date "2019.12.05"]
[Round "9.42"]
[White "John, Joshua"]
[Black "Nilssen, Ellen Fredericia"]
[Result "0-1"]
[ECO "D37"]
[WhiteElo "1680"]
[BlackElo "2004"]
[Annotator "NA RC"]
[PlyCount "120"]
[EventDate "2019.11.29"]
[EventType "swiss"]
[EventCountry "ENG"]
[SourceTitle "playchess.com"]
[Source "ChessBase"]
[SourceQuality "1"]
[TimeControl "40/5400+30:1800+30"]

1. d4 {[%emt 0:00:00]} e6 {[%emt 0:00:00]} 2. Nf3 {[%emt 0:00:00]} d5 {[%emt 0:00:00]} 3. c4 {[%emt 0:00:02]} Nf6 {[%emt 0:00:00]} 4. Nc3 {[%emt 0:00:07]} a6 {[%emt 0:00:00]} 5. cxd5 {[%emt 0:00:39]} exd5 {[%emt 0:00:09]} 6. Bg5 {[%emt 0:00:47]} Be6 {[%emt 0:00:06]} 7. e3 {[%emt 0:00:20]} Nbd7 {[%emt 0:02:53]} 8. Be2 {[%emt 0:02:44]} Bd6 {[%emt 0:00:08]} 9. a3 {[%emt 0:01:14]} O-O {[%emt 0:03:04]} 10. O-O {[%emt 0:02:58]} c6 {[%emt 0:02:13]} 11. b4 {[%emt 0:02:58]} Qb8 {[%emt 0:12:29]} 12. Bxf6 {[%emt 0:13:03]} Nxf6 {[%emt 0:00:11]} 13. Na4 {[%emt 0:00:22]} Ne4 {[%emt 0:05:58]} 14. Rc1 {[%emt 0:00:33]} a5 {[%emt 0:01:44]} 15. Qb3 {[%emt 0:05:43]} Bg4 {[%emt 0:03:45]} 16. Nb6 {[%emt 0:09:46]} Bxf3 {[%emt 0:02:10]} 17. Bxf3 {[%emt 0:00:55]} Nd2 {[%emt 0:01:36]} 18. Qc3 {[%emt 0:01:19]} Nxf1 {[%emt 0:09:09]} 19. Kxf1 {[%emt 0:02:40]} axb4 {[%emt 0:03:28]} 20. axb4 {[%emt 0:01:31]} Ra2 {[%emt 0:05:55]} 21. Nd7 {[%emt 0:00:30]} Qa7 {[%emt 0:03:48]} 22. Nxf8 {[%emt 0:01:31]} Qa6+ {[%emt 0:00:47]} 23. Kg1 {[%emt 0:00:29]} Bxf8 {[%emt 0:00:18]} 24. Bd1 {[%emt 0:14:47]} Qc4 {[%emt 0:07:08]} 25. Qxc4 {[%emt 0:03:03]} dxc4 {[%emt 0:00:03]} 26. Kf1 {[%emt 0:04:53]} b5 {[%emt 0:03:54]} 27. Rb1 {[%emt 0:14:23]} c3 {[%emt 0:01:06]} 28. Bb3 {[%emt 0:02:09]} Rd2 {[%emt 0:00:23]} 29. Rc1 {[%emt 0:01:45]} Bxb4 {[%emt 0:00:22]} 30. Rc2 {[%emt 0:00:33]} Rd1+ {[%emt 0:08:19]} 31. Ke2 {[%emt 0:00:08]} Ra1 {[%emt 0:00:11]} 32. Kd3 {[%emt 0:01:41]} Ra3 {[%emt 0:03:28]} 33. Ba2 {[%emt 0:00:06]} Be7 {[%emt 0:03:57]} 34. e4 {[%emt 0:02:29]} g6 {[%emt 0:02:01]} 35. g4 {[%emt 0:01:04]} g5 {[%emt 0:01:19]} 36. e5 {[%emt 0:01:22]} Kg7 {[%emt 0:01:06]} 37. d5 {[%emt 0:03:58]} cxd5 {[%emt 0:00:06]} 38. Bxd5 {[%emt 0:00:07]} b4 {[%emt 0:00:48]} 39. Ra2 {[%emt 0:00:42]} b3 {[%emt 0:01:30]} 40. Bxb3 {[%emt 0:02:41]} Rxb3 {[%emt 0:00:09]} 41. Kc2 {[%emt 0:30:29]} Rb2+ {[%emt 0:30:25]} 42. Rxb2 {[%emt 0:00:06]} cxb2 {[%emt 0:00:05]} 43. Kxb2 {[%emt 0:00:05]} Bc5 {[%emt 0:00:16]} 44. Kc3 {[%emt 0:01:23]} Bxf2 {[%emt 0:00:08]} 45. Kd3 {[%emt 0:00:21]} Kf8 {[%emt 0:01:49]} 46. Ke4 {[%emt 0:00:41]} Ke7 {[%emt 0:00:07]} 47. Kf5 {[%emt 0:00:21]} Be3 {[%emt 0:00:06]} 48. Ke4 {[%emt 0:00:14]} Bc1 {[%emt 0:00:11]} 49. Kf5 {[%emt 0:00:16]} Bd2 {[%emt 0:00:05]} 50. h3 {[%emt 0:00:13]} Bc1 {[%emt 0:00:08]} 51. Ke4 {[%emt 0:00:25]} Ke6 {[%emt 0:00:07]} 52. Kd4 {[%emt 0:00:39]} Bb2+ {[%emt 0:00:07]} 53. Ke4 {[%emt 0:00:10]} Bxe5 {[%emt 0:00:07]} 54. Kf3 {[%emt 0:00:16]} Kd5 {[%emt 0:00:12]} 55. Kg2 {[%emt 0:00:14]} Ke4 {[%emt 0:00:11]} 56. h4 {[%emt 0:00:07]} h6 {[%emt 0:01:16]} 57. Kh3 {[%emt 0:00:09]} Ba1 {[%emt 0:00:08]} 58. h5 {[%emt 0:00:12]} Kf3 {[%emt 0:00:08]} 59. Kh2 {[%emt 0:00:07]} Kxg4 {[%emt 0:00:08]} 60. Kh1 {[%emt 0:00:08]} Kf3 {[%emt 0:00:32]} 0-1

[Event "11th LCC FIDE Open 2019"]
[Site "London"]
[Date "2019.12.05"]
[Round "9.44"]
[White "Cordes, Hans-Joerg"]
[Black "Finn, Peter"]
[Result "1-0"]
[ECO "E33"]
[WhiteElo "2188"]
[BlackElo "1895"]
[Annotator "NA"]
[PlyCount "55"]
[EventDate "2019.11.29"]
[EventType "swiss"]
[EventCountry "ENG"]
[SourceTitle "playchess.com"]
[Source "ChessBase"]
[SourceQuality "1"]
[TimeControl "40/5400+30:1800+30"]

1. d4 {[%emt 0:00:00]} Nf6 {[%emt 0:00:00]} 2. c4 {[%emt 0:00:00]} e6 {[%emt 0:00:00]} 3. Nc3 {[%emt 0:00:01]} Bb4 {[%emt 0:00:00]} 4. Qc2 {[%emt 0:00:12]} Nc6 {[%emt 0:00:00]} 5. Nf3 {[%emt 0:00:46]} d6 {[%emt 0:00:13]} 6. Bd2 {[%emt 0:04:57]} O-O {[%emt 0:00:44]} 7. a3 {[%emt 0:00:11]} Bxc3 {[%emt 0:00:18]} 8. Bxc3 {[%emt 0:00:06]} Qe7 {[%emt 0:00:39]} 9. e3 {[%emt 0:17:30]} e5 {[%emt 0:02:02]} 10. dxe5 {[%emt 0:01:32]} Nxe5 {[%emt 0:05:48]} 11. Nxe5 {[%emt 0:03:40]} dxe5 {[%emt 0:00:07]} 12. Be2 {[%emt 0:00:06]} Re8 {[%emt 0:18:37]} 13. O-O {[%emt 0:01:31]} e4 {[%emt 0:01:05]} 14. Rfd1 {[%emt 0:03:23]} Bf5 {[%emt 0:03:46]} 15. b4 {[%emt 0:02:18]} Ng4 {[%emt 0:02:03]} 16. h3 {[%emt 0:12:48]} Ne5 {[%emt 0:06:04]} 17. Rd5 {[%emt 0:00:37]} f6 {[%emt 0:03:31]} 18. Bxe5 {[%emt 0:09:08]} fxe5 {[%emt 0:00:09]} 19. Bg4 {[%emt 0:00:48]} c6 {[%emt 0:14:06]} 20. Rd2 {[%emt 0:00:39]} Bxg4 {[%emt 0:01:09]} 21. hxg4 {[%emt 0:00:07]} Qh4 {[%emt 0:00:37]} 22. Qxe4 {[%emt 0:01:05]} Re6 {[%emt 0:00:40]} 23. g3 {[%emt 0:04:49]} Qh3 {[%emt 0:11:22]} 24. Rad1 {[%emt 0:00:43]} h5 {[%emt 0:04:54]} 25. Rd8+ {[%emt 0:07:02]} Re8 {[%emt 0:02:03]} 26. Rxe8+ {[%emt 0:02:19]} Rxe8 {[%emt 0:00:05]} 27. Qg6 {[%emt 0:00:27]} Rf8 {[%emt 0:00:23]} 28. Rd7 {[%emt 0:00:18]} 1-0

[Event "11th LCC FIDE Open 2019"]
[Site "London"]
[Date "2019.12.05"]
[Round "9.45"]
[White "Osborne, Marcus E"]
[Black "Patel, Rishi"]
[Result "1-0"]
[ECO "A27"]
[WhiteElo "2166"]
[BlackElo "1891"]
[Annotator "NA"]
[PlyCount "57"]
[EventDate "2019.11.29"]
[EventType "swiss"]
[EventCountry "ENG"]
[SourceTitle "playchess.com"]
[Source "ChessBase"]
[SourceQuality "1"]
[TimeControl "40/5400+30:1800+30"]

1. c4 {[%emt 1:26:10]} e5 {[%emt 0:00:12]} 2. Nc3 {[%emt 0:00:09]} Nc6 {[%emt 0:00:30]} 3. Nf3 {[%emt 0:00:13]} Bc5 {[%emt 0:01:48]} 4. e3 {[%emt 0:00:29]} d6 {[%emt 0:00:18]} 5. d4 {[%emt 0:00:17]} Bb4 {[%emt 0:00:08]} 6. dxe5 {[%emt 0:10:00]} Bxc3+ {[%emt 0:00:21]} 7. bxc3 {[%emt 0:00:06]} Nxe5 {[%emt 0:00:04]} 8. Nxe5 {[%emt 0:00:24]} dxe5 {[%emt 0:00:05]} 9. Qxd8+ {[%emt 0:00:06]} Kxd8 {[%emt 0:00:02]} 10. Ba3 {[%emt 0:00:15]} Be6 {[%emt 0:01:53]} 11. Bf8 {[%emt 0:00:33]} Ne7 {[%emt 0:14:15]} 12. Bxg7 {[%emt 0:00:07]} Re8 {[%emt 0:00:17]} 13. Bxe5 {[%emt 0:00:34]} Nc6 {[%emt 0:00:10]} 14. Bf6+ {[%emt 0:00:24]} Kc8 {[%emt 0:00:14]} 15. Bd3 {[%emt 0:01:36]} h6 {[%emt 0:01:20]} 16. Ke2 {[%emt 0:08:28]} Nb8 {[%emt 0:03:08]} 17. c5 {[%emt 0:03:15]} Bd5 {[%emt 0:03:03]} 18. c4 {[%emt 0:14:14]} Nd7 {[%emt 0:03:48]} 19. cxd5 {[%emt 0:08:12]} Nxf6 {[%emt 0:00:16]} 20. d6 {[%emt 0:00:27]} cxd6 {[%emt 0:00:51]} 21. cxd6 {[%emt 0:01:28]} Re5 {[%emt 0:05:09]} 22. Rac1+ {[%emt 0:03:40]} Kd7 {[%emt 0:05:34]} 23. Rc7+ {[%emt 0:01:10]} Kxd6 {[%emt 0:00:04]} 24. Rxf7 {[%emt 0:00:18]} Nd7 {[%emt 0:00:30]} 25. Rd1 {[%emt 0:01:28]} Kc6 {[%emt 0:04:27]} 26. f4 Ree8 {[%emt 0:01:24]} 27. Bg6 {[%emt 0:00:51]} Red8 {[%emt 0:01:21]} 28. Be4+ {[%emt 0:00:12]} Kc7 {[%emt 0:00:59]} 29. Bf5 {[%emt 0:00:09]} 1-0

[Event "11th LCC FIDE Open 2019"]
[Site "London"]
[Date "2019.12.05"]
[Round "9.46"]
[White "Nelson, Omowale"]
[Black "Coote, Trevor D"]
[Result "0-1"]
[ECO "A40"]
[WhiteElo "1924"]
[BlackElo "2075"]
[Annotator "NA RC"]
[PlyCount "94"]
[EventDate "2019.11.29"]
[EventType "swiss"]
[EventCountry "ENG"]
[SourceTitle "playchess.com"]
[Source "ChessBase"]
[SourceQuality "1"]
[TimeControl "40/5400+30:1800+30"]

1. d4 {[%emt 0:00:53]} e6 {[%emt 0:04:32]} 2. c4 {[%emt 0:00:14]} b6 {[%emt 0:00:02]} 3. Nc3 {[%emt 0:00:13]} Bb7 {[%emt 0:00:06]} 4. Nf3 {[%emt 0:00:46]} f5 {[%emt 0:00:08]} 5. Bf4 {[%emt 0:03:35]} Nf6 {[%emt 0:00:36]} 6. e3 {[%emt 0:03:27]} Bb4 {[%emt 0:05:37]} 7. Qb3 {[%emt 0:01:08]} Bxc3+ {[%emt 0:05:42]} 8. Qxc3 {[%emt 0:00:12]} Ne4 {[%emt 0:01:15]} 9. Qc2 {[%emt 0:01:08]} O-O {[%emt 0:03:18]} 10. h3 {[%emt 0:01:41]} d6 {[%emt 0:06:45]} 11. Bd3 {[%emt 0:01:30]} Nd7 {[%emt 0:00:58]} 12. O-O-O {[%emt 0:03:20]} Qe7 {[%emt 0:04:40]} 13. Ne1 {[%emt 0:12:43]} e5 {[%emt 0:06:59]} 14. Bh2 {[%emt 0:02:39]} exd4 {[%emt 0:10:22]} 15. exd4 {[%emt 0:04:35]} d5 {[%emt 0:01:08]} 16. f3 {[%emt 0:05:45]} Nd6 {[%emt 0:03:43]} 17. Kb1 {[%emt 0:00:12]} dxc4 {[%emt 0:06:11]} 18. Bxc4+ {[%emt 0:02:35]} Kh8 {[%emt 0:06:13]} 19. Nd3 {[%emt 0:14:51]} Nxc4 {[%emt 0:06:54]} 20. Qxc4 {[%emt 0:00:10]} Rac8 {[%emt 0:00:14]} 21. Rhe1 {[%emt 0:01:39]} Qf7 {[%emt 0:01:58]} 22. Qa4 {[%emt 0:02:53]} Bd5 {[%emt 0:02:57]} 23. Nb4 {[%emt 0:01:54]} f4 {[%emt 0:04:05]} 24. Nxd5 {[%emt 0:04:26]} Qxd5 {[%emt 0:00:01]} 25. Re4 {[%emt 0:00:23]} b5 {[%emt 0:01:15]} 26. Qa3 {[%emt 0:01:59]} c5 {[%emt 0:02:27]} 27. Bxf4 {[%emt 0:02:02]} a5 {[%emt 0:02:14]} 28. Qd3 {[%emt 0:11:27]} c4 {[%emt 0:00:24]} 29. Qc2 {[%emt 0:01:55]} b4 {[%emt 0:01:20]} 30. Be5 {[%emt 0:03:09]} h6 {[%emt 0:05:26]} 31. Rde1 {[%emt 0:08:22]} a4 {[%emt 0:01:54]} 32. Bxg7+ {[%emt 0:00:22]} Kxg7 {[%emt 0:00:02]} 33. Rg4+ {[%emt 0:00:17]} Kh8 {[%emt 0:00:31]} 34. Re7 {[%emt 0:02:25]} Rf7 {[%emt 0:00:54]} 35. Rge4 {[%emt 0:01:32]} b3 {[%emt 0:01:47]} 36. axb3 {[%emt 0:00:51]} axb3 {[%emt 0:00:07]} 37. Qd2 {[%emt 0:00:05]} Rxe7 {[%emt 0:01:13]} 38. Rxe7 {[%emt 0:00:03]} Qf5+ {[%emt 0:00:50]} 39. Re4 {[%emt 0:01:24]} Qg6 {[%emt 0:00:10]} 40. Kc1 {[%emt 0:00:17]} Ra8 {[%emt 0:02:28]} 41. Qc3 {[%emt 0:08:01]} Ra1+ {[%emt 0:00:37]} 42. Kd2 {[%emt 0:00:18]} Qxg2+ {[%emt 0:00:23]} 43. Re2 {[%emt 0:00:32]} Qg5+ {[%emt 0:00:28]} 44. Re3 {[%emt 0:04:08]} Ra8 {[%emt 0:16:01]} 45. d5+ {[%emt 0:03:32]} Nf6 {[%emt 0:00:43]} 46. d6 {[%emt 0:01:49]} Re8 {[%emt 0:08:40]} 47. d7 {[%emt 0:05:40]} Rxe3 {[%emt 0:00:25]} 0-1

[Event "11th LCC FIDE Open 2019"]
[Site "London"]
[Date "2019.12.05"]
[Round "9.47"]
[White "Grigoryan, Meri"]
[Black "Davis, Holden"]
[Result "1-0"]
[ECO "A96"]
[WhiteElo "2050"]
[BlackElo "1840"]
[Annotator "NA"]
[PlyCount "61"]
[EventDate "2019.11.29"]
[EventType "swiss"]
[EventCountry "ENG"]
[SourceTitle "playchess.com"]
[Source "ChessBase"]
[SourceQuality "1"]
[TimeControl "40/5400+30:1800+30"]

1. d4 {[%emt 0:00:00]} e6 {[%emt 0:00:00]} 2. c4 {[%emt 0:00:00]} f5 {[%emt 0:00:03]} 3. g3 {[%emt 0:00:00]} Nf6 {[%emt 0:00:08]} 4. Bg2 {[%emt 0:00:00]} Be7 {[%emt 0:00:08]} 5. Nf3 {[%emt 0:00:00]} O-O {[%emt 0:00:07]} 6. O-O {[%emt 0:00:02]} d6 {[%emt 0:00:06]} 7. Nc3 {[%emt 0:00:06]} a5 {[%emt 0:01:27]} 8. Qc2 {[%emt 0:00:13]} Nc6 {[%emt 0:02:13]} 9. Rd1 {[%emt 0:04:07]} Qe8 {[%emt 0:03:49]} 10. a3 {[%emt 0:06:43]} Qh5 {[%emt 0:07:53]} 11. Bg5 {[%emt 0:29:04]} e5 {[%emt 0:15:11]} 12. Bxf6 {[%emt 0:09:18]} Bxf6 {[%emt 0:01:55]} 13. dxe5 {[%emt 0:03:45]} dxe5 {[%emt 0:00:23]} 14. Nd5 {[%emt 0:01:45]} e4 {[%emt 0:09:39]} 15. Nxf6+ {[%emt 0:04:04]} Rxf6 {[%emt 0:00:20]} 16. Nd4 {[%emt 0:02:49]} Ne5 {[%emt 0:06:27]} 17. Nb5 {[%emt 0:04:15]} Bd7 {[%emt 0:04:21]} 18. Nxc7 {[%emt 0:01:51]} Raf8 {[%emt 0:02:34]} 19. Nd5 {[%emt 0:01:47]} Rh6 {[%emt 0:01:10]} 20. h4 {[%emt 0:05:21]} e3 {[%emt 0:07:47]} 21. Nxe3 {[%emt 0:04:53]} f4 {[%emt 0:01:39]} 22. Nf1 {[%emt 0:01:53]} f3 {[%emt 0:05:50]} 23. exf3 {[%emt 0:02:29]} Bc6 {[%emt 0:00:08]} 24. Nh2 {[%emt 0:01:41]} g5 {[%emt 0:07:48]} 25. Rd4 {[%emt 0:00:24]} Nxf3+ {[%emt 0:08:07]} 26. Nxf3 {[%emt 0:03:58]} Bxf3 {[%emt 0:00:43]} 27. Qd3 {[%emt 0:02:24]} Bxg2 {[%emt 0:01:03]} 28. Kxg2 {[%emt 0:00:09]} Rhf6 {[%emt 0:00:17]} 29. Rf1 {[%emt 0:00:51]} Rf3 {[%emt 0:01:15]} 30. Qd2 {[%emt 0:00:50]} R3f5 {[%emt 0:02:02]} 31. g4 {[%emt 0:01:27]} 1-0

[Event "11th LCC FIDE Open 2019"]
[Site "London"]
[Date "2019.12.05"]
[Round "9.48"]
[White "Vaddadi, Seshagiri"]
[Black "Zhao, Haolin"]
[Result "1-0"]
[ECO "B35"]
[WhiteElo "2042"]
[BlackElo "1842"]
[Annotator "NA"]
[PlyCount "55"]
[EventDate "2019.11.29"]
[EventType "swiss"]
[EventCountry "ENG"]
[SourceTitle "playchess.com"]
[Source "ChessBase"]
[SourceQuality "1"]
[TimeControl "40/5400+30:1800+30"]

1. e4 {[%emt 0:00:13]} c5 {[%emt 0:28:35]} 2. Nf3 {[%emt 0:00:06]} g6 {[%emt 0:00:06]} 3. d4 {[%emt 0:00:14]} cxd4 {[%emt 0:00:05]} 4. Nxd4 {[%emt 0:01:54]} Nc6 {[%emt 0:00:05]} 5. Bc4 {[%emt 0:02:04]} Bg7 {[%emt 0:00:16]} 6. Be3 {[%emt 0:01:13]} Nf6 {[%emt 0:00:41]} 7. Nc3 {[%emt 0:00:17]} O-O {[%emt 0:02:51]} 8. Nxc6 {[%emt 0:08:13]} bxc6 {[%emt 0:00:41]} 9. e5 {[%emt 0:02:07]} Ne8 {[%emt 0:00:33]} 10. f4 {[%emt 0:00:07]} d6 {[%emt 0:04:11]} 11. O-O {[%emt 0:01:41]} Qc7 {[%emt 0:01:01]} 12. exd6 {[%emt 0:01:00]} Nxd6 {[%emt 0:02:03]} 13. Bb3 {[%emt 0:03:12]} Rd8 {[%emt 0:02:25]} 14. Qf3 {[%emt 0:06:30]} Nf5 {[%emt 0:02:05]} 15. Rad1 {[%emt 0:09:25]} Nxe3 {[%emt 0:03:29]} 16. Qxe3 {[%emt 0:00:08]} Ba6 {[%emt 0:02:44]} 17. Rfe1 {[%emt 0:02:38]} e6 {[%emt 0:01:39]} 18. Ne4 {[%emt 0:02:45]} Rxd1 {[%emt 0:03:44]} 19. Rxd1 {[%emt 0:00:34]} Rd8 {[%emt 0:00:07]} 20. Rxd8+ {[%emt 0:04:24]} Qxd8 {[%emt 0:00:06]} 21. c3 {[%emt 0:00:07]} Qb6 {[%emt 0:01:58]} 22. Kf2 {[%emt 0:09:07]} Bf8 {[%emt 0:03:23]} 23. Qd4 {[%emt 0:12:53]} Be7 {[%emt 0:02:26]} 24. Kf3 {[%emt 0:01:51]} Bb7 {[%emt 0:00:47]} 25. Qd7 {[%emt 0:09:52]} Bf8 {[%emt 0:00:15]} 26. Bxe6 {[%emt 0:01:46]} fxe6 {[%emt 0:02:33]} 27. Nf6+ {[%emt 0:00:23]} Kh8 {[%emt 0:00:03]} 28. Qxh7# {[%emt 0:00:09]} 1-0